bitfinex/quotes_BTCUSD_20241211
["timestamp","ask_amount","ask_price","bid_price","bid_amount"]
[1733934333738,0.12330845,100970.0,100950.0,0.24859662]
[1733934333985,0.12530845,100970.0,100950.0,0.16935062]
[1733934334451,0.025,100970.0,100960.0,0.16935062]
[1733934334624,0.22589999,100980.0,100960.0,0.39858962]
[1733934334824,0.07589999,100980.0,100970.0,0.16935062]
[1733934335051,0.07589999,100980.0,100970.0,0.39858162]
[1733934335224,0.07589999,100980.0,100970.0,0.31935062]
[1733934335389,0.07589999,100980.0,100970.0,0.39858162]
[1733934335802,0.07589999,100980.0,100970.0,0.15]
[1733934336206,0.0948293,100980.0,100970.0,0.15]
[1733934336441,0.0948293,100980.0,100970.0,0.229231]
[1733934336607,0.01892931,100980.0,100970.0,0.39858162]
[1733934336803,0.47663196,101000.0,100980.0,0.229223]
[1733934337029,0.72694041,101000.0,100980.0,0.39857362]
[1733934337288,0.72694041,101000.0,100980.0,0.31935062]
[1733934337597,0.72694041,101000.0,100980.0,0.39857362]
[1733934337811,0.80604041,101000.0,100980.0,0.31935062]
[1733934338262,0.82513895,101000.0,100980.0,0.15]
[1733934339514,0.0791,100990.0,100970.0,0.15]
[1733934339716,0.0791,100990.0,100980.0,0.008]
[1733934339990,0.72162676,100990.0,100980.0,0.008]
[1733934340188,0.72162676,100990.0,100980.0,0.013]
[1733934340400,0.72162676,100990.0,100980.0,0.005]
[1733934340595,0.72162676,100990.0,100970.0,0.15]
[1733934340803,0.72162676,100990.0,100970.0,0.151]
[1733934340804,0.047,100980.0,100970.0,0.151]
[1733934341013,0.37700845,100980.0,100950.0,0.37703877]
[1733934341434,0.66260845,100970.0,100950.0,0.08742031]
[1733934341633,0.5393,100960.0,100940.0,0.31329036]
[1733934341842,0.0772,100950.0,100940.0,0.43076052]
[1733934342037,0.0772,100950.0,100940.0,0.35151052]
[1733934342236,0.5393,100960.0,100950.0,0.079247]
[1733934342436,0.5393,100960.0,100950.0,0.24859762]
[1733934342650,0.5393,100960.0,100950.0,0.39859762]
[1733934342842,0.5393,100960.0,100950.0,0.39914699]
[1733934343260,0.5393,100960.0,100950.0,0.73687575]
[1733934343479,0.5433,100960.0,100950.0,0.73687575]
[1733934343763,0.5433,100960.0,100950.0,0.58687575]
[1733934344051,0.5423,100960.0,100950.0,0.15054937]
[1733934344483,0.12872078,100960.0,100950.0,0.00154937]
[1733934344719,0.6893,100970.0,100950.0,0.00154937]
[1733934344928,0.78960845,100970.0,100950.0,0.00154937]
[1733934345758,0.78960845,100970.0,100950.0,0.00254937]
[1733934345759,0.009,100960.0,100950.0,0.00254937]
[1733934345962,0.009,100960.0,100950.0,0.15254937]
[1733934346171,0.009,100960.0,100950.0,0.15154937]
[1733934346376,0.36400845,100960.0,100950.0,0.00254937]
[1733934346793,0.36400845,100960.0,100950.0,0.00054937]
[1733934346794,0.35500845,100960.0,100950.0,0.00054937]
[1733934347201,0.35600845,100960.0,100950.0,0.00854937]
[1733934347404,0.55510645,100960.0,100950.0,0.01654937]
[1733934347812,0.55310645,100960.0,100950.0,0.00054937]
[1733934348016,0.55410645,100960.0,100950.0,0.00654937]
[1733934348375,0.35600845,100960.0,100950.0,0.00654937]
[1733934349592,0.61885707,100960.0,100950.0,0.00654937]
[1733934349795,0.61985707,100960.0,100950.0,0.00796001]
[1733934350002,0.45050645,100960.0,100950.0,0.00796001]
[1733934350480,0.44950645,100960.0,100950.0,0.00796001]
[1733934350725,0.173,100940.0,100920.0,0.16550044]
[1733934350945,0.35130845,100940.0,100920.0,0.16566519]
[1733934351568,0.228,100940.0,100920.0,0.16566519]
[1733934351794,0.28182261,100960.0,100930.0,0.24861262]
[1733934352008,0.33673106,100960.0,100940.0,0.16935062]
[1733934352215,0.33673106,100960.0,100940.0,0.15]
[1733934352422,0.35689812,100960.0,100950.0,0.001]
[1733934353042,0.35689812,100960.0,100940.0,0.15]
[1733934353249,0.35589812,100960.0,100940.0,0.151]
[1733934353486,0.5393,100950.0,100940.0,0.151]
[1733934353692,0.5393,100950.0,100940.0,0.39860562]
[1733934353869,0.5393,100950.0,100940.0,0.31935062]
[1733934354769,0.5393,100950.0,100940.0,0.32035062]
[1733934355799,0.5393,100950.0,100940.0,0.32335062]
[1733934356782,0.5393,100950.0,100940.0,0.154]
[1733934357140,0.5393,100950.0,100940.0,0.004]
[1733934357567,0.5393,100950.0,100940.0,0.17335062]
[1733934357768,0.5393,100950.0,100940.0,0.25260562]
[1733934357967,0.35589812,100960.0,100940.0,0.17335062]
[1733934358707,0.55399712,100960.0,100940.0,0.17335062]
[1733934358955,0.55399712,100960.0,100940.0,0.17035062]
[1733934360203,0.35589812,100960.0,100940.0,0.17035062]
[1733934360444,0.55399812,100960.0,100940.0,0.17035062]
[1733934360743,0.20589812,100960.0,100950.0,0.16935062]
[1733934360999,0.20589812,100960.0,100940.0,0.001]
[1733934361000,0.77510712,100960.0,100940.0,0.001]
[1733934361246,0.10030845,100950.0,100940.0,0.001]
[1733934361715,0.10030845,100950.0,100930.0,0.31935062]
[1733934361966,0.10030845,100950.0,100940.0,0.31935062]
[1733934362836,0.10030845,100950.0,100940.0,0.32235062]
[1733934363191,0.10030845,100950.0,100940.0,0.31935062]
[1733934363610,0.10130845,100950.0,100940.0,0.32035062]
[1733934364659,0.10230845,100950.0,100940.0,0.32535062]
[1733934365763,0.10230845,100950.0,100940.0,0.32528938]
[1733934365973,0.002,100950.0,100940.0,0.32522814]
[1733934366183,0.55112545,100950.0,100940.0,0.006]
[1733934366397,0.40112545,100950.0,100940.0,0.006]
[1733934369234,0.6893,100940.0,100910.0,0.01093819]
[1733934369446,0.78960845,100940.0,100910.0,0.31935062]
[1733934369670,0.91874544,100940.0,100910.0,0.39862462]
[1733934370379,0.72060844,100940.0,100920.0,0.16935062]
[1733934370598,0.72060844,100940.0,100930.0,0.31935062]
[1733934370599,0.5393,100940.0,100930.0,0.31935062]
[1733934370850,0.5393,100940.0,100930.0,0.39861262]
[1733934371103,0.5433,100940.0,100930.0,0.39861262]
[1733934371539,0.5443,100940.0,100930.0,0.39861262]
[1733934371977,0.5433,100940.0,100930.0,0.39861262]
[1733934372204,0.5393,100940.0,100930.0,0.39861262]
[1733934372433,0.5393,100940.0,100930.0,0.40361262]
[1733934372434,0.5403,100940.0,100930.0,0.40361262]
[1733934372688,0.5403,100940.0,100930.0,0.16935062]
[1733934372689,0.5413,100940.0,100930.0,0.16935062]
[1733934372891,0.002,100940.0,100930.0,0.56792108]
[1733934373640,0.002,100940.0,100930.0,0.78249503]
[1733934373847,0.002,100940.0,100930.0,0.80561878]
[1733934374061,0.002,100940.0,100930.0,0.93671533]
[1733934374276,0.002,100940.0,100930.0,1.24251226]
[1733934374482,0.002,100940.0,100930.0,1.21953144]
[1733934374689,0.47246471,100950.0,100930.0,1.22214975]
[1733934374908,0.47246471,100950.0,100940.0,0.39860562]
[1733934375151,0.47246471,100950.0,100940.0,0.31935062]
[1733934375367,0.47246471,100950.0,100940.0,0.64891407]
[1733934375788,0.47646471,100950.0,100940.0,0.71791408]
[1733934376005,0.47646471,100950.0,100940.0,0.89240906]
[1733934376277,0.47746471,100950.0,100940.0,1.06972975]
[1733934376487,0.001,100950.0,100940.0,1.26208037]
[1733934376711,0.001,100950.0,100940.0,1.26760375]
[1733934377556,0.002,100950.0,100940.0,1.27360375]
[1733934377967,0.002,100950.0,100940.0,1.09888649]
[1733934378176,0.44646288,100980.0,100970.0,0.079231]
[1733934378385,0.44646288,100980.0,100970.0,0.39858162]
[1733934379463,0.44646288,100980.0,100970.0,0.40358162]
[1733934379676,0.44646288,100980.0,100970.0,0.41258162]
[1733934379892,0.44746288,100980.0,100970.0,0.41258162]
[1733934380108,0.44746288,100980.0,100970.0,0.33335062]
[1733934380341,0.44746288,100980.0,100970.0,0.164]
[1733934380545,0.64552188,100980.0,100970.0,0.014]
[1733934380760,0.44746288,100980.0,100970.0,0.014]
[1733934382032,0.02499817,100980.0,100970.0,0.014]
[1733934382939,0.02499817,100980.0,100970.0,0.18335062]
[1733934383147,0.12530662,100980.0,100970.0,0.014]
[1733934383363,0.40096562,100980.0,100970.0,0.014]
[1733934383585,0.20290662,100980.0,100970.0,0.014]
[1733934383832,0.40096562,100980.0,100970.0,0.014]
[1733934384039,0.12530662,100980.0,100970.0,0.014]
[1733934385075,0.32336562,100980.0,100970.0,0.014]
[1733934385978,0.02499817,100980.0,100970.0,0.014]
[1733934387913,0.02499817,100980.0,100970.0,0.33335062]
[1733934388122,0.02499817,100980.0,100970.0,0.41258162]
[1733934388353,0.02499817,100980.0,100970.0,0.33335062]
[1733934388579,0.02499817,100980.0,100970.0,0.164]
[1733934388828,0.02499817,100980.0,100970.0,0.243231]
[1733934389318,0.02499817,100980.0,100970.0,0.164]
[1733934390903,0.56429817,100980.0,100970.0,0.33335062]
[1733934391151,0.56429817,100980.0,100970.0,0.41258162]
[1733934391272,0.56429817,100980.0,100970.0,0.50006685]
[1733934391496,0.56429817,100980.0,100970.0,0.70679469]
[1733934391696,0.56429817,100980.0,100970.0,0.95710314]
[1733934391962,0.5403,100980.0,100970.0,1.02610315]
[1733934393928,0.5403,100980.0,100970.0,0.80739008]
[1733934394138,0.5403,100980.0,100970.0,1.02596354]
[1733934394348,0.5403,100980.0,100970.0,0.89481946]
[1733934394755,0.5403,100980.0,100970.0,0.80739008]
[1733934394961,0.001,100980.0,100970.0,0.164]
[1733934395410,0.001,100980.0,100970.0,0.33335062]
[1733934396277,0.001,100980.0,100970.0,0.014]
[1733934396486,0.199059,100980.0,100970.0,0.014]
[1733934396700,0.29936745,100980.0,100970.0,0.014]
[1733934396908,0.001,100980.0,100970.0,0.014]
[1733934397114,0.001,100980.0,100970.0,0.18335062]
[1733934397323,0.001,100980.0,100970.0,0.014]
[1733934399977,0.001,100980.0,100970.0,0.40235063]
[1733934400184,0.001,100980.0,100970.0,0.56058163]
[1733934400599,0.001,100980.0,100970.0,0.56875625]
[1733934401212,0.001,100980.0,100970.0,0.64798725]
[1733934401439,0.001,100980.0,100970.0,0.81089008]
[1733934401648,0.001,100980.0,100970.0,1.02940413]
[1733934401858,0.001,100980.0,100970.0,1.35832381]
[1733934402075,1e-06,100980.0,100970.0,1.39250695]
[1733934402279,1e-06,100980.0,100970.0,1.57097858]
[1733934402485,1e-06,100980.0,100970.0,1.66746968]
[1733934403241,1e-06,100980.0,100970.0,1.27529008]
[1733934403442,0.45681782,101000.0,100990.0,0.21900001]
[1733934403788,0.45681782,101000.0,100990.0,1.04135343]
[1733934404360,0.45681782,101000.0,100990.0,1.56231803]
[1733934404630,0.38507406,101000.0,100990.0,1.64953148]
[1733934404747,0.38507406,101000.0,100990.0,1.53143184]
[1733934404963,0.38707406,101000.0,100990.0,1.53150405]
[1733934405188,0.38714244,101000.0,100990.0,1.57229993]
[1733934405423,0.38714244,101000.0,100990.0,1.35413899]
[1733934405622,0.38714244,101000.0,100990.0,1.18478837]
[1733934406001,0.38714244,101000.0,100990.0,1.35413899]
[1733934406123,0.38714244,101000.0,100990.0,1.57223863]
[1733934406325,0.38514244,101000.0,100990.0,1.44125916]
[1733934406764,0.38614244,101000.0,100990.0,1.44225916]
[1733934407047,0.38614244,101000.0,100990.0,1.27290854]
[1733934407167,0.38314244,101000.0,100990.0,1.44225916]
[1733934407373,0.38314244,101000.0,100990.0,1.26777945]
[1733934407574,0.38414244,101000.0,100990.0,1.44225916]
[1733934408015,0.38314244,101000.0,100990.0,1.35513899]
[1733934408423,0.39214244,101000.0,100990.0,1.44322063]
[1733934408909,0.39214244,101000.0,100990.0,1.50513899]
[1733934408910,0.38314244,101000.0,100990.0,1.50513899]
[1733934409123,0.33273644,101000.0,100990.0,1.90341539]
[1733934409342,0.33273644,101000.0,100990.0,2.29078045]
[1733934409343,0.29313244,101000.0,100990.0,2.29078045]
[1733934409548,0.29213244,101000.0,100990.0,2.44044239]
[1733934409726,0.29313244,101000.0,100990.0,2.31095083]
[1733934410172,0.02841765,101020.0,101010.0,0.3729]
[1733934410369,0.00878446,101020.0,101010.0,0.72175907]
[1733934410605,0.00878446,101020.0,101010.0,0.90711281]
[1733934410811,0.50242026,101030.0,101020.0,0.42154262]
[1733934410812,0.44220471,101030.0,101020.0,0.42154262]
[1733934410997,0.44220471,101030.0,101020.0,0.53975107]
[1733934411240,0.34322471,101030.0,101020.0,1.10910169]
[1733934411448,0.34322471,101030.0,101020.0,1.63660169]
[1733934411666,0.34322471,101030.0,101020.0,1.88379229]
[1733934411846,0.33915867,101030.0,101020.0,1.97074603]
[1733934412076,0.32236267,101030.0,101020.0,1.97074603]
[1733934412284,0.32236267,101030.0,101020.0,1.87534603]
[1733934412285,0.0227828,101030.0,101020.0,1.87534603]
[1733934412495,0.32766249,101050.0,101040.0,1.023]
[1733934412703,0.32766249,101050.0,101040.0,1.86648097]
[1733934412909,0.32766249,101050.0,101040.0,1.7462067]
[1733934413129,0.26828649,101050.0,101040.0,1.7462067]
[1733934413337,0.24849449,101050.0,101040.0,1.58708569]
[1733934413544,0.24849449,101050.0,101040.0,1.73708569]
[1733934413757,0.24845449,101050.0,101040.0,1.73708569]
[1733934414153,0.24845449,101050.0,101040.0,1.73808569]
[1733934414411,0.22866249,101050.0,101040.0,2.16149152]
[1733934414617,0.15966248,101050.0,101040.0,2.16149152]
[1733934414820,0.15966248,101050.0,101040.0,1.99388569]
[1733934415027,0.15966248,101050.0,101040.0,2.03346369]
[1733934415229,0.13987048,101050.0,101040.0,2.03346369]
[1733934415444,0.06070248,101050.0,101040.0,2.28060939]
[1733934416263,0.06070248,101050.0,101040.0,1.78596369]
[1733934416473,0.06070248,101050.0,101040.0,1.63596369]
[1733934416676,0.06070248,101050.0,101040.0,1.78596369]
[1733934417306,0.06070248,101050.0,101040.0,1.63596369]
[1733934417513,0.06070248,101050.0,101040.0,1.29638569]
[1733934417714,0.06070248,101050.0,101040.0,1.79038569]
[1733934418219,0.06070248,101050.0,101040.0,1.96412049]
[1733934418347,0.06070248,101050.0,101040.0,1.81412049]
[1733934418562,0.06070248,101050.0,101040.0,1.68429484]
[1733934418752,0.06270248,101050.0,101040.0,1.68329484]
[1733934418986,0.06270248,101050.0,101040.0,1.57749484]
[1733934419190,0.07070248,101050.0,101040.0,1.45549484]
[1733934419390,0.06270248,101050.0,101040.0,1.45449484]
[1733934419763,0.13144318,101070.0,101060.0,0.46935062]
[1733934419967,0.13160789,101070.0,101060.0,0.56965907]
[1733934420163,0.13160789,101070.0,101060.0,0.64881907]
[1733934420394,0.32948989,101070.0,101050.0,0.16935062]
[1733934420604,0.0761,101060.0,101050.0,0.26965907]
[1733934420814,0.0761,101060.0,101050.0,0.41965907]
[1733934422160,0.0761,101060.0,101050.0,0.49882707]
[1733934422788,0.0791,101060.0,101050.0,0.49882707]
[1733934422993,0.0761,101060.0,101050.0,0.49882707]
[1733934423383,0.0851,101060.0,101050.0,0.49882707]
[1733934423794,0.0851,101060.0,101050.0,0.39851862]
[1733934424470,0.0851,101060.0,101050.0,0.64882707]
[1733934424678,0.01609999,101060.0,101050.0,0.64882707]
[1733934424882,0.009,101060.0,101050.0,0.74882707]
[1733934425295,0.004,101060.0,101050.0,0.74882707]
[1733934425921,0.04860789,101070.0,101060.0,0.15]
[1733934426125,0.04860789,101070.0,101060.0,0.64881907]
[1733934426743,0.04860789,101070.0,101060.0,0.49881907]
[1733934426951,0.04860789,101070.0,101060.0,0.64881907]
[1733934427160,0.04860789,101070.0,101060.0,0.49881907]
[1733934427392,0.04860789,101070.0,101060.0,0.64881907]
[1733934427898,0.13140789,101070.0,101050.0,0.25051862]
[1733934428109,0.13140789,101070.0,101060.0,0.16935062]
[1733934428314,0.13540789,101070.0,101060.0,0.16935062]
[1733934428519,0.13540789,101070.0,101060.0,0.002]
[1733934428721,0.33328989,101070.0,101060.0,0.002]
[1733934428929,0.13540789,101070.0,101060.0,0.002]
[1733934429164,0.13140789,101070.0,101060.0,0.002]
[1733934429407,0.13940789,101070.0,101060.0,0.001]
[1733934429823,0.07040788,101070.0,101050.0,0.229168]
[1733934430030,0.07440788,101070.0,101050.0,0.229168]
[1733934430236,0.07440788,101070.0,101050.0,0.15]
[1733934430486,0.07440788,101070.0,101060.0,0.39851062]
[1733934430902,0.07440788,101070.0,101060.0,0.22916]
[1733934431314,0.06240788,101070.0,101060.0,0.22916]
[1733934431523,0.06240788,101070.0,101060.0,0.15]
[1733934431744,0.07240788,101070.0,101060.0,0.151]
[1733934431948,0.07240788,101070.0,101060.0,0.15]
[1733934432154,0.07440788,101070.0,101060.0,0.15]
[1733934432362,0.07440788,101070.0,101060.0,0.39851062]
[1733934432987,0.07440788,101070.0,101060.0,0.15]
[1733934433616,0.07440788,101070.0,101060.0,0.22916]
[1733934434672,0.00540787,101070.0,101060.0,0.22916]
[1733934435114,0.00540787,101070.0,101060.0,0.39851062]
[1733934435322,0.00540787,101070.0,101060.0,0.22916]
[1733934435764,0.00540787,101070.0,101060.0,0.15]
[1733934435978,0.00540787,101070.0,101050.0,0.229162]
[1733934436192,0.00540787,101070.0,101050.0,0.32947045]
[1733934436597,0.00540787,101070.0,101050.0,0.229162]
[1733934436853,0.00717755,101060.0,101050.0,0.229162]
[1733934437066,0.0467,101060.0,101030.0,0.61879556]
[1733934437275,0.0467,101060.0,101050.0,0.002]
[1733934437691,0.1265,101060.0,101050.0,0.001]
[1733934438140,0.1345,101060.0,101050.0,0.19289182]
[1733934438343,0.1345,101060.0,101050.0,0.11372382]
[1733934438555,0.1345,101060.0,101030.0,0.28269245]
[1733934438556,0.863702,101060.0,101030.0,0.54041227]
[1733934438768,0.863702,101060.0,101020.0,0.43890982]
[1733934438769,0.0794,101040.0,101020.0,0.43890982]
[1733934438974,0.1287,101040.0,101020.0,0.53921827]
[1733934439183,0.0787,101040.0,101020.0,0.43890982]
[1733934439448,0.276642,101040.0,101020.0,0.41612596]
[1733934439654,0.00718768,101030.0,101020.0,0.247]
[1733934439861,0.21482967,101040.0,101020.0,0.247]
[1733934440480,0.01688767,101040.0,101020.0,0.57450796]
[1733934440708,0.01888767,101040.0,101020.0,0.57550796]
[1733934440920,0.01888767,101040.0,101020.0,0.57567267]
[1733934441131,0.01888767,101040.0,101020.0,0.57467267]
[1733934441337,0.22383167,101040.0,101020.0,0.41729067]
[1733934441548,0.22383167,101040.0,101020.0,0.24816471]
[1733934441984,0.52209312,101040.0,101020.0,0.24816471]
[1733934442206,0.52209312,101040.0,101020.0,0.19715929]
[1733934442615,0.52209312,101040.0,101020.0,0.15116471]
[1733934442828,0.0755,101030.0,101020.0,0.15116471]
[1733934443266,0.0755,101030.0,101020.0,0.23035671]
[1733934443698,0.0755,101030.0,101020.0,0.39948267]
[1733934443926,0.0755,101030.0,101020.0,0.15116471]
[1733934444145,0.0755,101030.0,101020.0,0.15016471]
[1733934444353,0.0785,101030.0,101020.0,0.15016471]
[1733934444816,0.00949999,101030.0,101020.0,0.15016471]
[1733934445021,0.54879999,101030.0,101020.0,0.15016471]
[1733934445226,0.54879999,101030.0,101020.0,0.22935671]
[1733934445637,0.54879999,101030.0,101020.0,0.15016471]
[1733934445900,0.10980844,101030.0,101020.0,0.00016471]
[1733934446113,0.30776944,101030.0,101020.0,0.00016471]
[1733934446745,0.35486944,101030.0,101020.0,0.00016471]
[1733934446961,0.50486944,101030.0,101020.0,0.00016471]
[1733934447598,0.50186944,101030.0,101020.0,0.00016471]
[1733934448007,0.50386944,101030.0,101020.0,0.01716471]
[1733934448219,0.50286944,101030.0,101020.0,0.00816471]
[1733934448660,0.52486944,101030.0,101020.0,0.00416471]
[1733934449986,0.52486944,101030.0,101020.0,0.00716471]
[1733934451910,0.52486944,101030.0,101020.0,7.93614371]
[1733934453881,0.54447963,101030.0,101020.0,7.93614371]
[1733934454337,0.81369116,101030.0,101020.0,7.67975917]
[1733934454547,0.54447963,101030.0,101020.0,7.67723411]
[1733934454763,0.71360559,101030.0,101020.0,7.67723411]
[1733934455211,0.71360559,101030.0,101020.0,7.66435391]
[1733934455421,0.71360559,101030.0,101020.0,7.57836495]
[1733934455634,0.54447963,101030.0,101020.0,7.57836495]
[1733934456719,0.64857963,101030.0,101020.0,7.57836495]
[1733934456928,0.54447963,101030.0,101020.0,7.57836495]
[1733934457134,0.54447963,101030.0,101020.0,7.42997949]
[1733934457345,0.71360559,101030.0,101020.0,7.42997949]
[1733934457987,0.54447963,101030.0,101020.0,7.42997949]
[1733934458193,0.71360559,101030.0,101020.0,7.39037949]
[1733934458872,0.71360559,101030.0,101020.0,7.20985497]
[1733934459293,0.81770559,101030.0,101020.0,7.05844951]
[1733934459497,0.81770559,101030.0,101020.0,7.00212233]
[1733934459700,0.81770559,101030.0,101020.0,6.96252633]
[1733934460139,0.92279116,101030.0,101020.0,6.62788729]
[1733934460345,0.92279116,101030.0,101020.0,6.33526976]
[1733934460346,0.87569116,101030.0,101020.0,6.33526976]
[1733934460757,0.77560559,101030.0,101020.0,6.33526976]
[1733934460959,0.77560559,101030.0,101020.0,6.33032099]
[1733934461166,0.77560559,101030.0,101020.0,5.79102099]
[1733934461411,0.71936257,101030.0,101020.0,5.79102099]
[1733934461626,0.71936257,101030.0,101020.0,5.64263553]
[1733934462062,0.59226257,101030.0,101020.0,5.64263553]
[1733934462262,0.79644814,101030.0,101020.0,5.64263553]
[1733934462473,0.69636257,101030.0,101020.0,5.64263553]
[1733934462934,0.59226257,101030.0,101020.0,5.64263553]
[1733934463360,0.61526257,101030.0,101020.0,5.64263553]
[1733934463575,0.61526257,101030.0,101020.0,4.67333746]
[1733934463795,0.61526257,101030.0,101020.0,4.52493146]
[1733934464038,0.32937963,101030.0,101020.0,4.52493146]
[1733934465333,0.32837963,101030.0,101020.0,4.52493146]
[1733934465540,0.47537963,101030.0,101020.0,4.52493146]
[1733934465958,0.50137963,101030.0,101020.0,4.52493146]
[1733934466386,0.61426257,101030.0,101020.0,4.52593146]
[1733934467936,0.49487964,101030.0,101020.0,4.52593146]
[1733934468347,0.32187964,101030.0,101020.0,4.52593146]
[1733934469448,0.47187964,101030.0,101020.0,4.52593146]
[1733934469650,0.49487964,101030.0,101020.0,4.52593146]
[1733934470074,0.49487964,101030.0,101020.0,4.31955619]
[1733934470075,0.71186258,101030.0,101020.0,4.31955619]
[1733934470293,0.81194815,101030.0,101020.0,4.28357319]
[1733934470733,0.71186258,101030.0,101020.0,4.26301838]
[1733934471838,0.60376258,101030.0,101020.0,4.26201838]
[1733934472044,0.61276258,101030.0,101020.0,4.26301838]
[1733934472256,0.61276258,101030.0,101020.0,3.72371838]
[1733934472257,0.61576258,101030.0,101020.0,3.72371838]
[1733934472870,0.58376258,101030.0,101020.0,3.72271838]
[1733934473096,0.61277973,101030.0,101020.0,3.72271838]
[1733934473310,0.58376258,101030.0,101020.0,3.72271838]
[1733934473730,0.69686258,101030.0,101020.0,3.51592252]
[1733934473947,0.69686258,101030.0,101020.0,3.47632652]
[1733934474168,0.69686258,101030.0,101020.0,3.37733652]
[1733934474423,0.73223157,101030.0,101020.0,3.37733652]
[1733934474630,0.81994815,101030.0,101020.0,3.37733652]
[1733934474836,0.81994815,101030.0,101020.0,3.3563266]
[1733934475280,0.81994815,101030.0,101020.0,3.3365286]
[1733934475487,0.8495088,101030.0,101020.0,3.23676057]
[1733934475923,0.96239174,101030.0,101020.0,2.96797417]
[1733934476166,0.94264737,101030.0,101020.0,2.83555739]
[1733934477188,0.94264737,101030.0,101020.0,2.75636539]
[1733934477397,0.82976443,101030.0,101020.0,2.73656739]
[1733934477606,0.71986258,101030.0,101020.0,2.73656739]
[1733934477812,0.7494471,101030.0,101020.0,2.73656739]
[1733934478018,0.7494471,101030.0,101020.0,2.58814744]
[1733934478872,0.7494471,101030.0,101020.0,2.54855144]
[1733934479715,0.7494471,101030.0,101020.0,2.52875344]
[1733934479922,0.84953267,101030.0,101020.0,2.44956144]
[1733934480127,0.84953267,101030.0,101020.0,2.20215149]
[1733934480342,0.94269268,101030.0,101020.0,2.08752693]
[1733934480554,1.03086757,101030.0,101020.0,1.80343129]
[1733934480777,1.02100598,101030.0,101020.0,1.80343129]
[1733934480984,1.02100598,101030.0,101020.0,1.76383529]
[1733934481189,1.02100598,101030.0,101020.0,1.70444129]
[1733934481402,1.2294432,101030.0,101020.0,1.70344129]
[1733934481821,1.1404235,101030.0,101020.0,1.70444129]
[1733934482097,1.25330644,101030.0,101020.0,1.60545129]
[1733934482310,1.04033793,101030.0,101020.0,1.45703134]
[1733934482739,0.95235483,101030.0,101020.0,1.45703134]
[1733934482948,1.06523706,101030.0,101020.0,1.45703134]
[1733934483157,1.06523706,101030.0,101020.0,1.35804134]
[1733934483380,1.25330681,101030.0,101020.0,1.35804134]
[1733934483997,1.47374404,101030.0,101020.0,1.33824334]
[1733934484213,1.46388043,101030.0,101020.0,1.23392691]
[1733934484434,1.34148008,101030.0,101020.0,1.08549759]
[1733934484681,1.3316181,101030.0,101020.0,1.08549759]
[1733934484895,1.3316181,101030.0,101020.0,0.92586062]
[1733934484896,1.15526832,101030.0,101020.0,0.92586062]
[1733934485102,1.21983977,101030.0,101020.0,0.77788007]
[1733934485312,0.99940254,101030.0,101020.0,0.77788007]
[1733934485514,0.99940254,101030.0,101020.0,0.75071916]
[1733934485734,0.99940254,101030.0,101020.0,0.74971916]
[1733934485735,0.99440254,101030.0,101020.0,0.74971916]
[1733934485942,1.20656791,101030.0,101020.0,0.74971916]
[1733934486154,0.99240254,101030.0,101020.0,0.64415711]
[1733934486362,1.02876097,101030.0,101020.0,0.61672241]
[1733934486572,1.02876097,101030.0,101020.0,0.46829309]
[1733934486781,0.4521,101010.0,101000.0,2.92899309]
[1733934486993,0.77676531,101010.0,101000.0,2.9291579]
[1733934487263,0.86157391,101010.0,101000.0,2.9291579]
[1733934487495,0.97445685,101010.0,101000.0,2.9291579]
[1733934487927,0.88964825,101010.0,101000.0,2.9291579]
[1733934488352,0.89764825,101010.0,101000.0,2.9291579]
[1733934488619,0.89764825,101010.0,101000.0,2.9281579]
[1733934489031,0.89964825,101010.0,101000.0,2.9281579]
[1733934489702,0.89969858,101010.0,101000.0,2.77765313]
[1733934489916,0.99978415,101010.0,101000.0,2.76715313]
[1733934490202,0.99978415,101010.0,101000.0,2.58815313]
[1733934490419,0.99978415,101010.0,101000.0,2.56158213]
[1733934490850,0.89969858,101010.0,101000.0,2.37113824]
[1733934491062,0.78681564,101010.0,101000.0,2.23113824]
[1733934491272,0.76381564,101010.0,101000.0,2.23113824]
[1733934491482,0.45830845,101010.0,101000.0,2.28033824]
[1733934491692,0.48786826,101010.0,101000.0,2.28033824]
[1733934491905,0.30830845,101010.0,101000.0,2.28033824]
[1733934492126,0.44029899,101010.0,101000.0,2.28033824]
[1733934492371,0.64341098,101010.0,101000.0,2.19026494]
[1733934492556,0.74751098,101010.0,101000.0,2.13976989]
[1733934492767,0.44029899,101010.0,101000.0,2.13976989]
[1733934492990,0.55838411,101010.0,101000.0,2.13976989]
[1733934493226,0.79170618,101010.0,101000.0,2.13976989]
[1733934493472,0.61329899,101010.0,101000.0,2.13976989]
[1733934494583,0.47741605,101010.0,101000.0,2.26616989]
[1733934494805,0.49710365,101010.0,101000.0,2.26616989]
[1733934495230,0.34710365,101010.0,101000.0,2.26616989]
[1733934496338,0.49710365,101010.0,101000.0,2.26616989]
[1733934496554,0.12941605,101010.0,101000.0,2.37905283]
[1733934496768,0.76744706,101040.0,101010.0,0.1272]
[1733934496979,0.76744706,101040.0,101020.0,0.1272]
[1733934496980,0.10030845,101030.0,101020.0,0.1272]
[1733934497652,0.44826945,101030.0,101020.0,0.1272]
[1733934498280,0.44826945,101030.0,101020.0,0.1292]
[1733934498695,0.44826945,101030.0,101020.0,0.1272]
[1733934498925,0.59826945,101030.0,101020.0,0.1272]
[1733934499136,0.59826945,101030.0,101020.0,0.1312]
[1733934499550,0.73415239,101030.0,101020.0,0.1312]
[1733934499752,0.62126945,101030.0,101020.0,0.1312]
[1733934500186,0.62126945,101030.0,101020.0,0.1372]
[1733934500377,0.62126945,101030.0,101020.0,0.1332]
[1733934500378,0.62226945,101030.0,101020.0,0.1332]
[1733934500588,0.62126945,101030.0,101020.0,0.1292]
[1733934500797,0.64191853,101030.0,101020.0,0.1312]
[1733934501016,0.62126945,101030.0,101020.0,0.1312]
[1733934502285,0.73415239,101030.0,101020.0,0.1312]
[1733934502906,0.62126945,101030.0,101020.0,0.1312]
[1733934503329,0.58415239,101030.0,101020.0,0.1312]
[1733934503538,0.47126945,101030.0,101020.0,0.1312]
[1733934504200,0.62126945,101030.0,101020.0,0.1312]
[1733934504605,0.47066945,101030.0,101020.0,0.1312]
[1733934505450,0.47006945,101030.0,101020.0,0.1312]
[1733934505855,0.62006945,101030.0,101020.0,0.1312]
[1733934506271,0.46946945,101030.0,101020.0,0.1312]
[1733934506479,0.46946945,101030.0,101020.0,0.1292]
[1733934506683,0.47046945,101030.0,101020.0,0.1322]
[1733934507093,0.47046945,101030.0,101020.0,0.1362]
[1733934507503,0.58335239,101030.0,101020.0,0.1362]
[1733934507712,0.47046945,101030.0,101020.0,0.1362]
[1733934508498,0.73335239,101030.0,101020.0,0.1362]
[1733934509069,0.62046945,101030.0,101020.0,0.1362]